bitfinex-derivatives/quotes_ETHF0:USTF0_20250817
["timestamp","ask_amount","ask_price","bid_price","bid_amount"]
[1755407729317,1.4334,4490.1,4490.0,0.5803]
[1755407729515,1.4334,4489.5,4489.4,4.1485]
[1755407729719,22.19942023,4489.5,4489.4,4.4053]
[1755407729919,22.19942023,4489.5,4489.1,0.3604]
[1755407730114,0.5751,4489.2,4489.1,0.1711]
[1755407730312,22.19642023,4489.2,4489.1,1.451]
[1755407730513,21.35212023,4489.2,4489.1,4.6588]
[1755407730818,21.58952023,4489.2,4489.1,4.6588]
[1755407731019,22.21042023,4489.2,4489.1,4.6588]
[1755407731413,1.02352023,4489.2,4489.1,4.6588]
[1755407731612,22.20642023,4489.2,4489.1,4.6588]
[1755407731918,22.20642023,4489.2,4489.1,4.4053]
[1755407732115,0.21102023,4489.2,4489.1,4.6588]
[1755407732319,20.558,4489.2,4489.1,4.6588]
[1755407732511,20.76902023,4489.2,4489.1,4.6588]
[1755407735420,22.19858147,4489.2,4489.1,4.6588]
[1755407735611,22.19858147,4489.2,4489.1,3.3789]
[1755407736013,22.19860088,4489.2,4489.1,3.2078]
[1755407737020,21.91531537,4489.2,4488.4,3.2078]
[1755407737323,1.4334,4488.5,4488.4,3.7881]
[1755407737516,22.18960088,4488.5,4488.4,3.7881]
[1755407738325,22.18960088,4488.5,4488.4,4.6588]
[1755407742925,22.18960088,4488.5,4488.4,4.4053]
[1755407743325,22.18960088,4488.5,4488.4,3.2078]
[1755407744518,22.18974139,4488.5,4488.4,3.2078]
[1755407744921,22.18974155,4488.5,4488.4,3.2078]
[1755407746721,22.76482985,4488.5,4488.4,3.2078]
[1755407747125,0.20734155,4488.5,4488.4,3.7393]
[1755407747325,22.18914155,4488.5,4488.4,4.6588]
[1755407748222,20.74034155,4488.5,4488.4,4.6588]
[1755407748721,20.73334155,4488.5,4488.4,4.6588]
[1755407749228,0.20734155,4488.5,4488.4,4.6588]
[1755407749427,20.73434155,4488.5,4488.4,4.6588]
[1755407749725,21.14474155,4488.5,4488.4,4.6588]
[1755407750528,21.14466975,4488.5,4488.4,4.6588]
[1755407751228,22.21516975,4488.5,4488.4,4.6588]
[1755407752325,0.20726975,4488.5,4488.4,4.6588]
[1755407753529,20.546,4488.7,4488.4,4.6588]
[1755407753830,0.20723708,4488.6,4488.5,1.4618]
[1755407754031,20.546,4488.7,4488.5,1.4618]
[1755407754226,0.20723438,4488.6,4488.5,1.4618]
[1755407757433,0.87843438,4488.6,4488.5,1.4618]
[1755407757733,1.68813438,4488.6,4488.5,1.4618]
[1755407758534,0.20723438,4488.6,4488.5,1.4618]
[1755407760631,0.6388,4489.3,4488.5,0.5766]
[1755407760832,1.4809,4489.0,4488.9,3.7844]
[1755407761032,1.68820565,4489.0,4488.9,3.7844]
[1755407761231,1.68820565,4489.0,4488.9,4.0346]
[1755407761434,1.68820565,4489.0,4488.9,4.6696]
[1755407761734,0.20730749,4489.0,4488.9,4.6696]
[1755407761926,1.2327,4489.3,4489.2,0.5766]
[1755407762231,1.68814265,4489.3,4489.2,4.6696]
[1755407770541,1.4809,4489.3,4489.2,4.6696]
[1755407770744,1.69068418,4489.3,4489.2,4.6696]
[1755407773841,0.7910449,4489.3,4489.2,4.6696]
[1755407774043,0.2097449,4489.3,4489.2,4.6696]
[1755407774340,1.4809,4490.4,4490.3,0.5766]
[1755407774540,1.69060277,4490.4,4490.3,4.6696]
[1755407774741,1.69060277,4490.4,4490.3,3.2078]
[1755407779745,1.4809,4490.4,4490.3,3.2078]
[1755407780046,1.69049701,4490.4,4490.3,3.2078]
[1755407781943,1.69049701,4490.4,4490.3,3.3739]
[1755407782247,1.69049701,4490.4,4490.3,3.7304]
[1755407784250,1.69049701,4490.4,4490.3,3.9687]
[1755407785053,1.69055691,4490.4,4490.3,3.9687]
[1755407786651,1.69055691,4490.4,4490.3,4.6186]
[1755407788850,1.4809,4490.4,4490.3,4.6186]
[1755407789149,0.20978703,4490.4,4490.3,4.3725]
[1755407789353,1.3162,4491.4,4491.3,1.3026]
[1755407789546,3.2078,4491.7,4491.3,1.3026]
[1755407789749,0.1724,4491.5,4491.4,1.3026]
[1755407789951,1.4886,4491.5,4491.4,1.3026]
[1755407790551,0.8456,4491.5,4491.4,1.3026]
[1755407791460,0.5829,4491.7,4491.6,0.5699]
[1755407791661,1.2259,4491.7,4491.6,1.3026]
[1755407792159,1.4886,4491.7,4491.6,4.5104]
[1755407792663,1.4886,4491.9,4491.8,1.3026]
[1755407792850,1.4886,4491.9,4491.8,1.0008]
[1755407793250,1.4886,4491.9,4491.8,0.7625]
[1755407793455,1.4886,4491.9,4491.6,3.2078]
[1755407793456,0.5829,4491.7,4491.6,3.2078]
[1755407793655,1.4886,4491.7,4491.6,3.2078]
[1755407794166,1.4886,4491.7,4491.6,3.3739]
[1755407794658,1.4886,4491.7,4491.6,4.5104]
[1755407795049,0.2542,4492.3,4491.6,4.3725]
[1755407795355,0.5829,4491.8,4491.7,0.7078]
[1755407795558,1.4886,4491.8,4491.7,0.7078]
[1755407795860,1.4886,4491.8,4491.7,1.3026]
[1755407799656,1.5989967,4494.0,4491.7,1.3026]
[1755407799657,0.3888,4493.2,4492.6,0.406]
[1755407799964,3.2078,4493.7,4492.6,0.406]
[1755407799965,0.85692,4492.7,4492.6,4.5104]
[1755407800153,1.24572,4492.7,4492.6,4.5104]
[1755407800854,1.07332,4492.7,4492.6,4.5104]
[1755407801054,1.24572,4492.7,4492.6,4.5104]
[1755407801562,1.49642,4492.7,4492.6,4.5104]
[1755407802860,1.49642,4492.7,4492.6,3.3739]
[1755407804058,1.49642,4492.7,4492.6,3.7304]
[1755407804465,1.49642,4492.7,4492.6,4.2086]
[1755407804767,0.00782,4492.7,4492.6,4.5104]
[1755407805064,0.85342,4492.7,4492.6,4.5104]
[1755407805261,1.49642,4492.7,4492.6,4.5104]
[1755407806061,0.00782,4492.7,4492.6,4.5104]
[1755407806468,1.49642,4492.7,4492.6,4.5104]
[1755407807457,0.44292,4492.7,4492.6,4.5104]
[1755407807662,0.00782,4492.7,4492.6,4.5104]
[1755407807862,0.26732,4492.7,4492.6,4.5104]
[1755407808063,1.45552,4492.7,4492.6,4.5104]
[1755407810470,0.84082,4492.7,4492.6,4.5104]
[1755407811468,1.45552,4492.7,4492.6,4.5104]
[1755407813368,0.00782,4492.7,4492.6,4.5104]
[1755407814071,0.26732,4492.7,4492.6,4.5104]
[1755407815965,1.20912,4492.7,4492.6,4.5104]
[1755407816170,1.45552,4492.7,4492.6,4.5104]
[1755407816373,1.45552,4492.7,4492.6,3.2078]
[1755407816973,1.45552,4492.7,4492.6,3.3687]
[1755407817372,1.45552,4492.7,4492.6,4.5768]
[1755407818073,1.66082126,4492.7,4492.6,4.5768]
[1755407818372,1.66082126,4492.7,4492.6,3.2078]
[1755407818573,1.66082126,4492.7,4492.6,3.7477]
[1755407818773,1.66082126,4492.7,4492.6,4.2646]
[1755407820773,1.66082126,4492.7,4492.6,4.5768]
[1755407821475,1.66082126,4492.7,4492.6,4.4387]
[1755407821672,1.66082126,4492.7,4492.6,3.5868]
[1755407821967,1.66082126,4492.7,4492.6,4.2646]
[1755407822674,1.66082126,4492.7,4492.6,4.0029]
[1755407823577,1.66082126,4492.7,4492.6,4.2646]
[1755407823873,1.66082126,4492.7,4492.6,4.5768]
[1755407824074,1.25152126,4492.7,4492.6,4.5768]
[1755407824375,1.66178149,4492.7,4492.6,4.5768]
[1755407825062,1.66178304,4492.7,4492.6,4.5768]
[1755407825263,1.66178304,4492.7,4492.6,4.4387]
[1755407825462,1.66178304,4492.7,4492.6,4.5768]
[1755407827368,1.66178304,4492.7,4492.6,4.177]
[1755407827566,1.66178304,4492.7,4492.6,4.4387]
[1755407828171,1.66178304,4492.7,4492.6,4.5768]
[1755407830774,1.66178304,4492.7,4492.6,2.8127]
[1755407830966,0.3271,4492.0,4491.9,3.2078]
[1755407831168,1.6066663,4492.0,4491.9,3.2078]
[1755407831366,0.3271,4490.9,4490.8,3.2078]
[1755407831575,1.03129175,4490.9,4490.8,3.2078]
[1755407831773,1.10924931,4490.9,4490.6,0.2617]
[1755407832075,0.8246,4490.7,4490.6,0.2617]
[1755407832270,1.03129175,4490.7,4490.6,0.2617]
[1755407832772,0.2595,4490.6,4490.3,0.6342]
[1755407832979,0.53379175,4490.5,4490.4,1.0568]
[1755407833280,0.8246,4490.5,4490.4,1.0568]
[1755407833575,1.03081799,4490.5,4490.4,0.6778]
[1755407833976,1.03081799,4490.5,4489.6,0.44515]
[1755407833977,0.5866,4489.7,4489.6,0.6778]
[1755407834171,1.03060614,4489.7,4489.6,0.6778]
[1755407834374,1.03060614,4489.7,4489.6,1.0568]
[1755407834578,1.03060614,4489.7,4489.6,1.4905]
[1755407835176,0.8246,4489.7,4489.6,1.4905]
[1755407835875,0.8246,4489.7,4489.6,1.2309]
[1755407836077,0.8246,4489.7,4489.6,1.4905]
[1755407836781,0.5866,4489.7,4489.6,1.4905]
[1755407836973,0.4237,4490.0,4489.9,0.5902]
[1755407837277,0.5866,4490.0,4489.9,1.4905]
[1755407837579,0.825,4490.0,4489.9,1.4905]
[1755407837878,0.825,4490.0,4489.9,1.0568]
[1755407838078,0.5866,4490.0,4489.9,1.2269]
[1755407838268,0.2522,4490.7,4489.9,0.5862]
[1755407838473,0.5806,4490.7,4490.6,1.4522]
[1755407839579,0.2522,4491.0,4490.6,1.4522]
[1755407839774,0.16,4490.9,4490.8,0.8091]
[1755407839975,0.5806,4490.9,4490.8,1.4522]
[1755407842177,24.5168,4491.5,4491.4,1.033]
[1755407842377,24.5168,4491.5,4490.7,0.6316]
[1755407842573,0.3284,4490.9,4490.8,0.8091]
[1755407842878,0.3284,4490.9,4490.8,1.4522]
[1755407843378,0.4122,4491.1,4491.0,0.5715]
[1755407843578,0.5806,4491.1,4491.0,1.4522]
[1755407844874,0.2522,4491.4,4491.1,0.8807]
[1755407845078,0.3284,4491.2,4491.1,1.4522]
[1755407845279,0.5806,4491.2,4491.1,1.4522]
[1755407845578,0.3284,4490.7,4490.6,4.2408]
[1755407845780,0.3284,4490.0,4489.9,1.2031]
[1755407845979,0.5806,4490.0,4489.9,1.4522]
[1755407846775,0.4122,4490.0,4489.9,1.4522]
[1755407847081,0.2384,4490.6,4489.9,0.5715]
[1755407847281,0.4122,4490.1,4490.0,0.5715]
[1755407847881,0.5806,4490.1,4490.0,1.4522]
[1755407849778,21.0696,4490.7,4490.6,0.4014]
[1755407849985,0.5806,4490.7,4490.6,1.4522]
[1755407850580,3.3678,4491.0,4490.9,1.0582]
[1755407850775,3.7884,4491.0,4490.9,1.4522]
[1755407850976,0.3284,4490.6,4490.5,0.8091]
[1755407851176,0.5806,4490.6,4490.5,1.4522]
[1755407852187,0.4122,4490.6,4490.5,1.4522]
[1755407852383,3.5362,4491.0,4490.9,0.5715]
[1755407852586,3.5362,4491.0,4490.9,1.4522]
[1755407852885,3.7746,4491.0,4490.9,1.4522]
[1755407853092,4.0268,4491.0,4490.9,1.4522]
[1755407853283,4.0268,4491.0,4490.9,1.2031]
[1755407854189,4.0268,4491.0,4490.9,1.033]
[1755407854584,4.0268,4491.0,4490.9,0.639]
[1755407855186,0.2522,4490.9,4490.6,0.631]
[1755407855390,0.819,4490.7,4490.6,0.5715]
[1755407855591,0.819,4490.7,4490.6,0.8206]
[1755407855785,0.819,4490.7,4490.6,1.4522]
[1755407856090,0.5806,4490.7,4490.6,1.4522]
[1755407857692,3.5362,4491.0,4490.9,0.5715]
[1755407857892,3.98165829,4491.0,4490.9,1.4522]
[1755407858093,3.98165829,4491.0,4490.9,0.2376]
[1755407858281,0.3284,4490.8,4490.7,0.4746]
[1755407858488,0.16,4490.3,4489.9,0.2376]
[1755407858689,0.819,4490.1,4490.0,1.2031]
[1755407858993,0.819,4490.1,4490.0,1.4522]
[1755407859185,1.0264206,4490.1,4490.0,1.4522]
[1755407859587,1.0264206,4490.1,4490.0,1.2031]
[1755407859794,1.0264206,4490.1,4490.0,1.033]
[1755407861986,1.0264206,4490.1,4490.0,0.639]
[1755407863196,1.0264206,4490.1,4490.0,1.4522]
[1755407864997,0.7880206,4490.1,4490.0,1.4522]
[1755407865700,1.02684079,4490.1,4490.0,1.2031]
[1755407866299,1.02686489,4490.1,4490.0,1.2031]
[1755407866794,1.02686489,4490.1,4490.0,1.4522]
[1755407867103,1.02686489,4490.1,4490.0,1.2031]
[1755407867295,1.02686489,4490.1,4489.8,0.2607]
[1755407867496,0.3275,4489.9,4489.8,0.2607]
[1755407867800,1.02746489,4489.9,4489.8,0.2607]
[1755407868197,1.02746489,4489.9,4489.7,3.2078]
[1755407868398,1.02746489,4489.8,4489.7,3.4685]
[1755407869200,1.02746489,4489.8,4489.7,0.2607]
[1755407869403,1.02746489,4489.8,4489.7,1.0452]
[1755407870899,0.78276489,4489.8,4489.2,0.3759]
[1755407871204,0.8196,4489.3,4489.2,1.2182]
[1755407871402,1.02746489,4489.3,4489.2,1.2182]
[1755407871600,20.69586489,4489.3,4489.2,1.4595]
[1755407871798,21.02336489,4489.3,4489.2,1.4595]
[1755407872003,21.26806489,4489.3,4489.2,1.4595]
[1755407872403,21.51546489,4489.3,4489.2,1.4595]
[1755407872800,21.26806489,4489.3,4489.2,1.4595]
[1755407873494,21.10926489,4489.3,4489.2,1.4595]
[1755407874000,20.86456489,4489.3,4489.2,1.4595]
[1755407874799,20.86447401,4489.3,4489.2,1.4595]
[1755407875107,21.26797401,4489.3,4489.2,1.4595]
[1755407876206,21.51537401,4489.3,4489.2,1.4595]
[1755407876602,21.51537401,4489.3,4489.0,3.2078]
[1755407876900,0.8196,4489.1,4489.0,3.8444]
[1755407877208,1.02737401,4489.1,4489.0,4.6673]
[1755407878301,0.77997401,4489.1,4489.0,3.2078]
[1755407878507,1.02737401,4489.1,4489.0,3.4685]
[1755407879206,1.02737401,4489.1,4489.0,0.2607]
[1755407879504,1.02737401,4489.1,4488.4,3.2078]
[1755407879708,0.3275,4488.8,4488.7,0.6499]
[1755407879907,1.02737401,4488.8,4488.7,0.6499]
[1755407880308,1.02737401,4488.8,4488.7,1.4595]
[1755407880513,0.77997401,4488.8,4488.7,1.4595]
[1755407880706,0.77990063,4488.8,4488.7,1.4595]
[1755407882507,0.20770063,4488.8,4488.7,1.4595]
[1755407882713,20.488,4489.1,4489.0,0.5816]
[1755407882913,20.488,4489.1,4489.0,1.4595]
[1755407882914,20.69563524,4489.1,4489.0,1.4595]
[1755407883418,0.2076576,4489.1,4489.0,1.4595]
[1755407883718,21.7535,4490.4,4490.3,1.0452]
[1755407883914,22.3281671,4490.4,4490.3,1.0452]
[1755407884111,22.3281671,4490.4,4490.0,0.2413]
[1755407884310,1.2655,4490.1,4490.0,0.2607]
[1755407884513,0.6995,4490.0,4489.7,0.2607]
[1755407884715,1.2655,4489.8,4489.7,0.7993]
[1755407884915,1.2655,4489.8,4489.7,1.0452]
[1755407885410,1.0181,4489.8,4489.7,1.4595]
[1755407885608,21.5041,4489.8,4489.7,1.4595]
[1755407885803,1.0181,4489.8,4489.7,1.4595]
[1755407886208,3.2078,4490.8,4489.8,0.2607]
[1755407886510,22.07924982,4490.7,4490.6,1.4595]
[1755407886707,22.32664982,4490.7,4490.6,1.4595]
[1755407886902,22.32664982,4490.7,4490.3,0.7993]
[1755407886903,0.3973,4490.4,4490.3,0.7993]
[1755407887107,1.84064982,4490.4,4490.3,1.0452]
[1755407888118,0.566,4489.6,4489.5,1.2182]
[1755407888312,0.566,4489.6,4488.9,1.2182]
[1755407888313,1.0181,4489.0,4488.9,1.2182]
[1755407888516,21.5031,4489.0,4488.9,1.2182]
[1755407888717,21.7505,4489.0,4488.9,1.2182]
[1755407889209,21.7505,4489.0,4488.9,1.0452]
[1755407889411,0.566,4488.8,4488.7,0.4234]
[1755407889613,0.566,4488.8,4488.7,0.6693]
[1755407889913,1.2655,4488.8,4488.7,0.6693]
[1755407890306,1.2655,4488.8,4488.7,1.0452]
[1755407890817,1.2655,4488.8,4488.7,1.2182]
[1755407894412,1.2655,4488.8,4488.3,3.2078]
[1755407894413,1.0181,4488.8,4488.3,3.2078]
[1755407894614,0.2074,4488.7,4488.4,0.3759]
[1755407894811,1.2655,4488.5,4488.4,0.6693]
[1755407895114,21.7495,4488.5,4488.4,0.6693]
[1755407895316,21.7495,4488.5,4488.4,1.0452]
[1755407895509,21.7495,4488.5,4488.4,1.4595]
[1755407895710,21.95047116,4488.5,4488.4,1.4595]
[1755407897818,0.5837,4488.2,4488.1,0.6627]
[1755407898015,1.49537116,4488.2,4488.1,1.053]
[1755407898320,1.49537116,4488.2,4488.1,1.2156]
[1755407898516,1.49537116,4488.2,4488.1,1.464]
[1755407899515,0.5837,4487.7,4487.6,3.6166]
[1755407899711,21.97937116,4487.7,4487.6,3.8705]
[1755407900513,21.97937116,4487.7,4487.6,3.2078]
[1755407900719,0.5837,4487.4,4487.3,0.6627]
[1755407900915,1.49529,4487.4,4487.3,1.053]
[1755407901514,1.49518223,4487.4,4487.3,1.053]
[1755407902816,21.05878223,4487.4,4487.3,1.464]
[1755407903123,21.72358223,4487.4,4487.3,1.464]
[1755407903916,20.68678223,4487.4,4487.3,1.464]
[1755407904114,0.2453,4488.1,4487.3,0.5714]
[1755407904315,21.02196856,4488.0,4487.9,0.5714]
[1755407904609,21.47506856,4488.0,4487.9,1.464]
[1755407904812,21.47506856,4488.0,4487.2,0.2539]
[1755407905013,0.20056856,4487.9,4487.3,0.6387]
[1755407905210,0.4175,4487.5,4487.4,1.464]
[1755407905610,0.1722,4487.5,4487.4,1.464]
[1755407905821,0.1722,4487.3,4487.1,0.10028637]
[1755407906119,21.7794,4487.2,4487.1,0.10028637]
[1755407906918,21.7794,4487.2,4487.1,1.31588637]
[1755407907621,21.0667,4487.2,4487.1,1.56428637]
[1755407908117,21.5218,4487.2,4487.1,1.56428637]
[1755407908425,1.0368,4487.2,4487.1,1.56428637]
[1755407908722,21.0667,4487.2,4487.1,1.56428637]
[1755407910718,0.3364,4487.2,4487.1,1.56428637]
[1755407910912,0.829,4487.9,4487.8,0.5714]
[1755407911115,21.98081657,4487.9,4487.8,1.464]
[1755407911925,21.98081657,4487.9,4487.8,1.2156]
[1755407912720,0.3364,4487.4,4487.3,0.5824]
[1755407912923,21.0687,4487.4,4487.3,1.464]
[1755407913428,21.2765,4487.4,4487.3,1.464]
[1755407913723,0.2473,4487.2,4487.1,0.50028637]
[1755407913930,1.0368,4487.2,4487.1,0.92008637]
[1755407914424,1.0368,4487.2,4487.1,1.56428637]
[1755407916426,0.1722,4487.2,4487.1,1.56428637]
[1755407916625,20.9035,4487.2,4487.1,1.56428637]
[1755407916824,21.5228,4487.2,4487.1,1.56428637]
[1755407917225,21.72489549,4487.2,4487.1,1.56428637]
[1755407919126,21.72501327,4487.2,4487.1,1.56428637]
[1755407919624,21.72504766,4487.2,4487.1,1.56428637]
[1755407920425,21.72504766,4487.2,4487.1,1.15328637]
[1755407920426,21.98264766,4487.2,4487.1,1.15328637]
[1755407922526,21.98264766,4487.2,4487.1,1.56428637]
[1755407923120,21.98264766,4487.2,4487.1,1.31588637]
[1755407923316,21.98264766,4487.2,4487.1,0.76298637]
[1755407923526,21.98264766,4487.2,4487.1,1.15328637]
[1755407925527,21.98264766,4487.2,4487.1,1.40168637]
[1755407925726,21.98264766,4487.2,4487.1,1.15328637]
[1755407926326,22.56029059,4487.2,4487.1,0.10028637]
[1755407926824,22.30069059,4487.2,4487.1,0.76298637]
[1755407927027,22.55829059,4487.2,4486.5,0.3903]
[1755407927328,0.4183,4486.5,4486.4,0.8198]
[1755407927522,20.68724766,4486.5,4486.4,0.8198]
[1755407927723,20.68724766,4486.5,4486.4,1.4529]
[1755407928421,20.68771149,4486.5,4486.4,1.4529]
[1755407929031,0.20271149,4486.5,4486.4,1.4529]
[1755407931330,0.44887265,4486.7,4486.4,0.5714]
[1755407931624,0.20277265,4486.6,4486.4,0.5714]
[1755407931830,0.20277265,4486.5,4486.4,1.4509]
[1755407932035,0.44887265,4486.5,4486.4,1.4509]
[1755407932228,0.60907265,4486.5,4486.4,1.4509]
[1755407932430,0.20277265,4486.5,4486.4,1.4509]
[1755407932629,0.44887265,4486.5,4486.4,1.4509]
[1755407933130,0.60907265,4486.5,4486.4,1.4509]
[1755407936432,0.20277265,4486.5,4486.4,1.4509]
[1755407937241,0.20277413,4486.5,4486.4,0.5714]
[1755407937831,0.2027746,4486.5,4486.4,0.5714]
[1755407938038,0.2027746,4486.5,4486.4,1.4509]
[1755407941038,0.9846746,4486.5,4486.4,1.4509]
[1755407941936,0.2461,4486.4,4486.2,3.2078]
[1755407942138,1.279,4486.2,4486.1,0.4187]
[1755407942340,1.4817746,4486.2,4486.1,1.0518]
[1755407942842,1.4817746,4486.2,4486.1,1.4631]
[1755407943341,1.4817746,4486.2,4484.4,2.7699843]
[1755407943342,0.8249,4485.6,4485.5,1.2167]
[1755407943537,1.4817746,4485.6,4485.5,1.2167]
[1755407943731,1.4817746,4485.6,4485.5,1.4631]
[1755407944741,1.279,4485.5,4485.4,1.4631]
[1755407944940,1.4817746,4485.5,4485.4,1.4631]
[1755407945441,1.48189542,4485.5,4485.4,1.4631]
[1755407946840,1.22589542,4485.5,4485.4,1.4631]
[1755407947739,1.48189542,4485.5,4485.4,1.2167]
[1755407948939,1.48189542,4485.5,4485.4,1.4631]
[1755407949942,1.48189542,4485.5,4485.4,1.2167]
[1755407950843,1.48189542,4485.5,4485.4,0.6731]
[1755407951037,1.48189542,4485.5,4485.2,3.2078]
[1755407951237,3.2078,4485.9,4485.2,3.4622]
[1755407951238,0.5689,4485.3,4485.2,3.4622]
[1755407951437,1.48178829,4485.3,4485.2,0.2544]
[1755407951638,1.48178829,4485.3,4485.2,0.7921]
[1755407951944,1.22578829,4485.3,4485.2,1.4631]
[1755407952538,0.20258829,4485.3,4485.2,1.4631]
[1755407952742,0.2461,4485.8,4485.2,4.6709]
[1755407952941,0.73854609,4485.7,4485.6,0.5836]
[1755407953136,0.73854609,4485.7,4485.6,1.4631]
[1755407953338,0.73854609,4485.7,4485.6,0.7974]
[1755407953339,0.97964609,4485.7,4485.6,0.7974]
[1755407953545,1.48174609,4485.7,4485.6,1.0518]
[1755407953741,1.48174609,4485.7,4485.6,1.2982]
[1755407953945,1.48174609,4485.7,4485.6,1.0518]
[1755407954442,1.48174376,4485.7,4485.6,1.0518]
[1755407955140,1.48174396,4485.7,4485.6,1.0518]
[1755407955346,1.48174396,4485.7,4485.6,1.4631]
[1755407955543,0.5021,4485.6,4484.8,0.8795]
[1755407955738,0.1602,4484.9,4484.8,0.5836]
[1755407956048,0.5739,4484.9,4484.8,0.5836]
[1755407956242,1.0232,4484.9,4484.8,0.5836]
[1755407956448,1.0232,4484.9,4484.8,1.4631]
[1755407957136,0.5739,4484.9,4484.8,1.4631]
[1755407958242,0.7991,4485.2,4485.1,1.4627]
[1755407958442,1.50742475,4485.2,4485.1,1.4627]
[1755407958841,1.50742475,4485.2,4485.1,1.2249]
[1755407959536,0.20252475,4485.2,4485.1,1.4627]
[1755407959737,1.3051,4485.7,4485.6,0.6871]
[1755407959947,1.50760962,4485.7,4485.6,0.6871]
[1755407960441,0.20250962,4485.7,4485.6,1.4627]
[1755407960640,0.2559,4485.8,4485.7,0.6077]
[1755407960947,0.79338559,4485.8,4485.7,4.6705]
[1755407961145,1.00178559,4485.8,4485.7,4.6705]
[1755407961346,1.00178559,4485.8,4485.7,1.4627]
[1755407962942,1.26418559,4485.8,4485.7,1.4627]
[1755407963544,1.3051,4485.8,4485.7,1.057]
[1755407963749,1.50766943,4485.8,4485.7,1.057]
[1755407963952,0.5974,4485.6,4485.5,3.4608]
[1755407964145,1.26428309,4485.6,4485.5,3.2078]
[1755407964344,1.507714,4485.6,4485.5,4.2648]
[1755407964850,1.507714,4485.6,4485.5,1.057]
[1755407966452,1.507714,4485.6,4485.5,1.4627]
[1755407967847,1.264314,4485.6,4485.5,1.4627]
[1755407969144,0.4993,4485.5,4485.0,0.4908]
[1755407969349,0.7993,4485.1,4485.0,1.4627]
[1755407969550,1.001914,4485.1,4485.0,1.4627]
[1755407970052,1.264314,4485.1,4484.9,3.2078]
[1755407970252,1.264314,4485.0,4484.9,4.4175]
[1755407970655,1.264314,4485.0,4484.9,4.6705]
[1755407972654,1.26475497,4485.0,4484.9,4.6705]
[1755407973353,1.26481538,4485.0,4484.9,4.6705]
[1755407975448,0.20311538,4485.0,4484.9,4.6705]
[1755407977752,0.61941538,4485.0,4484.9,4.6705]
[1755407978854,0.6214513,4485.0,4484.9,4.6705]
[1755407979458,0.2051513,4485.0,4484.9,4.6705]
[1755407980254,3.4637,4486.0,4484.9,4.6705]
[1755407980458,0.2434,4486.3,4484.0,1.11429]
[1755407980459,0.4163,4485.9,4485.8,1.4627]
[1755407980658,0.8589,4485.8,4485.5,0.8607]
[1755407980960,1.2129,4485.6,4485.5,1.4627]
[1755407981358,1.4563,4485.6,4485.5,0.855]
[1755407981551,1.4563,4485.6,4485.5,1.2249]
[1755407981747,1.4563,4485.6,4485.5,1.4627]
[1755407981964,1.2129,4485.6,4485.5,1.4627]
[1755407985963,21.6869,4486.3,4486.2,1.4627]
[1755407986262,0.5974,4485.5,4485.4,4.3006]
[1755407986560,1.4563,4485.5,4485.4,4.6705]
[1755407986960,1.2129,4485.5,4485.4,4.6705]
[1755407987161,1.4563,4485.5,4485.4,4.6705]
[1755407987860,1.4563,4485.5,4485.4,1.4627]
[1755407989762,1.4584,4485.5,4485.4,0.4268]
[1755407990060,1.4584,4485.5,4485.4,0.253]
[1755407990963,0.609,4485.3,4485.1,0.3657]
[1755407991162,1.2471,4485.3,4485.2,1.2118]
[1755407991663,1.4969,4485.3,4485.2,1.462]
[1755407992264,1.69925493,4485.3,4485.2,1.462]
[1755407993961,1.69926488,4485.3,4485.2,1.462]
[1755407995065,1.69926488,4485.3,4485.2,1.2008]
[1755407995269,1.05686488,4485.3,4484.9,3.8347]
[1755407995564,0.81136488,4485.2,4485.1,1.462]
[1755407995964,1.06116488,4485.2,4485.1,1.462]
[1755407996166,1.45376488,4485.2,4485.1,1.462]
[1755407996467,0.20236488,4485.2,4485.1,1.462]
[1755407996659,0.20236488,4485.2,4485.1,0.5849]
[1755407996969,1.2514,4486.2,4486.1,0.5849]
[1755407997267,2.03186717,4486.2,4486.1,1.462]
[1755407997570,1.45371714,4486.2,4486.1,1.462]
[1755407998272,0.20231714,4486.2,4486.1,1.2008]
[1755407998464,0.20231714,4486.2,4486.1,1.462]
[1755407999476,0.62661714,4486.2,4486.1,1.462]
[1755407999666,0.9917,4486.2,4486.1,1.462]
[1755407999865,0.20222152,4486.2,4486.1,1.0963]
[1755408000072,0.20222152,4486.2,4486.1,1.462]
[1755408001377,21.7194,4487.1,4487.0,1.2118]
[1755408001577,21.9649,4487.1,4487.0,0.6604]
[1755408001777,21.9649,4487.1,4487.0,0.412]
[1755408002089,0.609,4486.8,4486.7,0.6159]
[1755408002272,1.0016,4486.5,4486.4,0.2502]
[1755408002473,1.4969,4486.5,4486.3,3.2078]
[1755408002676,0.609,4485.9,4485.8,0.6604]
[1755408002874,1.4969,4485.9,4485.8,1.0261]
[1755408003275,1.4969,4485.9,4485.3,3.2078]
[1755408003475,0.609,4485.4,4485.3,3.7927]
[1755408003673,1.2514,4485.4,4484.8,3.2078]
[1755408003979,1.2514,4484.9,4484.8,4.6698]
[1755408007274,1.2514,4484.9,4484.8,4.4086]
[1755408007474,1.4969,4484.9,4484.8,3.8682]
[1755408008969,1.4969,4484.9,4484.8,4.2339]
[1755408009181,1.4969,4484.9,4484.8,4.4086]
[1755408009379,1.4969,4484.9,4484.8,4.6698]
[1755408010081,0.8588,4485.6,4485.5,0.5849]
[1755408010282,1.1043,4485.6,4485.5,0.9506]
[1755408010477,1.1043,4485.6,4485.5,0.7759]
[1755408010677,0.684,4485.6,4485.5,1.2008]
[1755408010873,1.2514,4485.6,4485.5,1.462]
[1755408011480,0.8588,4485.6,4485.5,1.462]
[1755408011783,1.2514,4485.6,4485.5,1.462]
[1755408011984,1.4969,4485.6,4485.5,1.462]
[1755408013488,0.609,4485.4,4485.3,0.412]
[1755408013786,1.6939899,4485.4,4485.3,1.0261]